bitfinex/quotes_BTCUSD_20240607
["timestamp","ask_amount","ask_price","bid_price","bid_amount"]
[1717787622884,0.028946,69026.0,69025.0,0.76849873]
[1717787623752,0.028946,69026.0,69025.0,0.75849873]
[1717787624182,0.028946,69026.0,69025.0,0.6140798]
[1717787624446,0.028946,69026.0,69025.0,0.30346019]
[1717787624646,0.028946,69026.0,69025.0,0.15300161]
[1717787625279,0.014946,69026.0,69025.0,0.15300161]
[1717787625485,0.000946,69026.0,69025.0,0.15300161]
[1717787625697,0.028946,69026.0,69025.0,0.15300161]
[1717787626082,0.014946,69026.0,69025.0,0.15300161]
[1717787626332,0.028946,69026.0,69025.0,0.31410651]
[1717787626554,0.028946,69026.0,69025.0,0.3034869]
[1717787626770,0.028946,69026.0,69025.0,0.15048529]
[1717787627002,0.000946,69026.0,69025.0,0.1]
[1717787627209,0.014946,69026.0,69025.0,0.1]
[1717787627424,0.028946,69026.0,69025.0,0.1]
[1717787627643,0.014946,69026.0,69018.0,0.05300161]
[1717787627861,0.014946,69026.0,69022.0,0.1]
[1717787628115,0.028946,69026.0,69025.0,0.1]
[1717787628352,0.014946,69026.0,69023.0,0.1]
[1717787628564,0.014946,69026.0,69018.0,0.05300161]
[1717787628565,0.000946,69026.0,69018.0,0.05300161]
[1717787628787,0.0114946,69025.0,69018.0,0.05300161]
[1717787629018,0.0114946,69025.0,69012.0,0.2]
[1717787629019,0.1506,69022.0,69019.0,0.15049634]
[1717787629251,0.1506,69022.0,69004.0,0.2]
[1717787629252,0.0812,69013.0,69005.0,0.1]
[1717787629474,0.0812,69013.0,69003.0,0.05300161]
[1717787629475,0.14441893,69012.0,69006.0,0.1]
[1717787629699,0.2548,69011.0,68996.0,0.15300161]
[1717787629917,0.14441893,69010.0,68999.0,0.1]
[1717787630128,0.1,69009.0,69001.0,0.1]
[1717787630343,0.1,69009.0,69006.0,0.1]
[1717787630344,0.14441893,69008.0,69006.0,0.1]
[1717787630572,0.1,69007.0,69005.0,0.1]
[1717787630793,0.1,69007.0,68993.0,0.07308824]
[1717787630794,0.1,69007.0,69006.0,0.1]
[1717787631672,0.1548,69011.0,69006.0,0.1]
[1717787631673,0.014,69009.0,69006.0,0.1]
[1717787631887,0.1,69010.0,69006.0,0.1]
[1717787632094,0.014,69009.0,69006.0,0.1]
[1717787632537,0.014,69007.0,69003.0,0.05300161]
[1717787632747,0.25841893,69007.0,69003.0,0.05300161]
[1717787632926,0.15841893,69007.0,69004.0,0.1]
[1717787633144,0.15841893,69007.0,69005.0,0.1]
[1717787633145,0.1,69006.0,69005.0,0.1]
[1717787633578,0.1,69006.0,69003.0,0.15300161]
[1717787634024,0.1,69006.0,69003.0,0.05300161]
[1717787634250,0.1,69006.0,69005.0,0.1]
[1717787634475,0.1,69006.0,68996.0,0.01061961]
[1717787634476,0.1,69006.0,69001.0,0.1]
[1717787634685,0.114,69006.0,69001.0,0.1]
[1717787634917,0.1,69006.0,69005.0,0.1]
[1717787635285,0.114,69006.0,69005.0,0.1]
[1717787635507,0.1,69006.0,69005.0,0.1]
[1717787635711,0.114,69006.0,69005.0,0.1]
[1717787636546,0.114,69006.0,69005.0,0.11061961]
[1717787636956,0.128,69006.0,69005.0,0.11061961]
[1717787637156,0.128,69006.0,69005.0,0.01061961]
[1717787637360,0.128,69006.0,69005.0,0.11061961]
[1717787637645,0.128,69006.0,69005.0,0.1]
[1717787637888,0.028,69006.0,69005.0,0.1]
[1717787638312,0.028,69006.0,68995.0,0.1]
[1717787638313,0.15841893,69006.0,68995.0,0.1]
[1717787638531,0.15841893,69006.0,68997.0,0.1]
[1717787638532,0.14441893,69005.0,68997.0,0.1]
[1717787638968,0.1,69004.0,68997.0,0.1]
[1717787639594,0.1,69004.0,69000.0,0.01061961]
[1717787639821,0.1,69004.0,69003.0,0.06362122]
[1717787640039,0.014,69006.0,69003.0,0.06362122]
[1717787640040,0.014,69005.0,69004.0,0.21061961]
[1717787640249,0.014,69005.0,69004.0,0.41061961]
[1717787640456,0.1,69010.0,69005.0,0.1]
[1717787640662,0.0805,69010.0,69009.0,0.21061961]
[1717787640874,0.01710252,69011.0,69010.0,0.36362122]
[1717787641307,0.2394,69023.0,69015.0,0.01061961]
[1717787641516,0.01707008,69016.0,69015.0,0.01061961]
[1717787641761,0.14441893,69022.0,69014.0,0.1]
[1717787642417,0.14441893,69022.0,69015.0,0.07222824]
[1717787642660,0.14441893,69022.0,69020.0,0.05300161]
[1717787642869,0.1,69021.0,69020.0,0.05300161]
[1717787643083,0.24441893,69021.0,69020.0,0.05300161]
[1717787643983,0.1,69021.0,69020.0,0.26362122]
[1717787644194,0.014,69022.0,69020.0,0.06362122]
[1717787644372,0.014,69021.0,69020.0,0.26362122]
[1717787645254,0.014,69022.0,69020.0,0.06362122]
[1717787645478,0.014,69022.0,69020.0,0.05300161]
[1717787645688,0.14441893,69021.0,69020.0,0.05300161]
[1717787645893,0.014,69021.0,69020.0,0.05300161]
[1717787646098,0.114,69021.0,69020.0,0.06362122]
[1717787646304,0.1,69021.0,69020.0,0.06362122]
[1717787646515,0.1,69021.0,69020.0,0.26362122]
[1717787647128,0.014,69022.0,69021.0,0.21061961]
[1717787647508,0.014,69022.0,69021.0,0.31061961]
[1717787647721,0.0182565,69026.0,69025.0,0.31061961]
[1717787647933,0.161,69037.0,69025.0,0.31061961]
[1717787648146,0.161,69037.0,69022.0,0.08222824]
[1717787648147,0.161,69037.0,69034.0,0.05300161]
[1717787648620,0.161,69037.0,69034.0,0.26362122]
[1717787649510,0.144839,69042.0,69034.0,0.26362122]
[1717787649511,0.4782,69047.0,69045.0,0.05300161]
[1717787649727,0.02592269,69049.0,69046.0,0.01061961]
[1717787649949,0.057992,69049.0,69046.0,0.01061961]
[1717787650154,0.14441893,69050.0,69046.0,0.01061961]
[1717787650155,0.14441893,69050.0,69048.0,0.01061961]
[1717787650358,0.14441893,69050.0,69045.0,0.05300161]
[1717787650359,0.14441893,69050.0,69047.0,0.01061961]
[1717787650768,0.14441893,69050.0,69045.0,0.05300161]
[1717787650969,0.22011893,69050.0,69045.0,0.05300161]
[1717787651170,0.22011893,69050.0,69036.0,0.15300161]
[1717787651171,0.1506,69044.0,69036.0,0.15300161]
[1717787651379,0.14441893,69043.0,69036.0,0.15300161]
[1717787651586,0.24441893,69043.0,69036.0,0.15300161]
[1717787652031,0.24441893,69043.0,69036.0,0.16362122]
[1717787652260,0.24441893,69043.0,69042.0,0.01061961]
[1717787652261,0.1,69043.0,69042.0,0.01061961]
[1717787653001,0.24441893,69043.0,69036.0,0.15300161]
[1717787653216,0.14441893,69042.0,69040.0,0.01061961]
[1717787653413,0.1,69041.0,69039.0,0.01061961]
[1717787653642,0.1,69041.0,69038.0,0.01061961]
[1717787654582,0.114,69041.0,69039.0,0.01061961]
[1717787654778,0.1,69041.0,69039.0,0.01061961]
[1717787655003,0.1,69041.0,69036.0,0.16362122]
[1717787655166,0.1,69041.0,69036.0,0.15300161]
[1717787655167,0.114,69041.0,69036.0,0.15300161]
[1717787655580,0.114,69041.0,69024.0,0.0775]
[1717787655581,0.21971893,69040.0,69030.0,0.1]
[1717787655780,0.21971893,69040.0,69029.0,0.1]
[1717787655983,0.21971893,69040.0,69021.0,0.05300161]
[1717787655984,0.7634,69038.0,69021.0,0.05300161]
[1717787656194,0.297864,69039.0,69021.0,0.05300161]
[1717787656195,0.6,69031.0,69021.0,0.05300161]
[1717787656393,0.2336,69027.0,69021.0,0.05300161]
[1717787656649,0.1,69026.0,69023.0,0.01061961]
[1717787656892,0.09621892,69026.0,69023.0,0.01061961]
[1717787657096,0.09621892,69026.0,69021.0,0.05300161]
[1717787657517,0.09621892,69026.0,69024.0,0.01061961]
[1717787657727,0.14441893,69031.0,69023.0,0.01026237]
[1717787657952,0.14441893,69031.0,69019.0,0.1]
[1717787657953,0.14441893,69031.0,69028.0,0.05300161]
[1717787658167,0.5525113,69032.0,69028.0,0.05300161]
[1717787658168,0.1740503,69032.0,69031.0,0.21026237]
[1717787658380,0.4782,69037.0,69036.0,0.06326398]
[1717787658799,0.4782,69037.0,69036.0,0.05300161]
[1717787659424,0.4782,69037.0,69027.0,0.1]
[1717787659425,0.4782,69037.0,69029.0,0.05300161]
[1717787659573,0.1,69036.0,69029.0,0.05300161]
[1717787659738,0.14441893,69035.0,69029.0,0.05300161]
[1717787660147,0.1,69034.0,69031.0,0.01026237]
[1717787660378,0.1,69034.0,69029.0,0.05300161]
[1717787660580,0.1,69034.0,69029.0,0.06326398]
[1717787661212,0.014,69037.0,69030.0,0.01026237]
[1717787661431,0.014,69037.0,69036.0,0.05300161]
[1717787661888,0.1,69038.0,69037.0,0.01026237]
[1717787662096,0.38563968,69040.0,69039.0,0.21026237]
[1717787662097,0.1740301,69040.0,69039.0,0.21026237]
[1717787662304,0.01756879,69042.0,69041.0,0.21026237]
[1717787662510,0.78080958,69049.0,69036.0,0.15300161]
[1717787662511,0.652,69049.0,69039.0,0.01026237]
[1717787662978,0.652,69049.0,69044.0,0.05300161]
[1717787663212,0.652,69049.0,69044.0,0.06326398]
[1717787663413,0.652,69049.0,69044.0,0.26326398]
[1717787663677,0.652,69049.0,69044.0,0.06326398]
[1717787664096,0.4255,69045.0,69044.0,0.06326398]
[1717787664520,0.4395,69045.0,69044.0,0.06326398]
[1717787664724,0.4395,69045.0,69044.0,0.26326398]
[1717787664935,0.4566734,69045.0,69044.0,0.26326398]
[1717787665166,0.014,69045.0,69044.0,0.94480931]
[1717787665407,0.014,69045.0,69044.0,1.09750931]
[1717787665634,0.43336945,69072.0,69071.0,0.26326398]
[1717787666056,0.009471,69076.0,69075.0,0.21026237]
[1717787667413,0.02656775,69076.0,69075.0,0.23658877]
[1717787667632,0.009471,69076.0,69075.0,0.8113077]
[1717787667866,0.023471,69076.0,69075.0,0.96403594]
[1717787668525,0.037471,69076.0,69075.0,0.49076237]
[1717787668740,0.023471,69076.0,69075.0,0.8654813]
[1717787668957,0.009471,69076.0,69075.0,0.8654813]
[1717787669200,0.009471,69076.0,69075.0,0.97259959]
[1717787669415,0.009471,69076.0,69075.0,1.12529959]
[1717787669416,0.023471,69076.0,69075.0,1.12529959]
[1717787669845,0.009471,69076.0,69075.0,1.12529959]
[1717787670057,0.024471,69076.0,69075.0,1.12629959]
[1717787670545,0.009471,69076.0,69075.0,1.12529959]
[1717787670764,0.010471,69076.0,69075.0,1.13329959]
[1717787670972,0.011471,69076.0,69075.0,1.12529959]
[1717787671178,0.010471,69076.0,69075.0,1.12529959]
[1717787671386,0.011471,69076.0,69075.0,1.33329959]
[1717787671604,0.011471,69076.0,69075.0,1.13329959]
[1717787671816,0.010471,69076.0,69075.0,1.12529959]
[1717787672039,0.011471,69076.0,69075.0,1.0321813]
[1717787672257,0.010471,69076.0,69075.0,1.0321813]
[1717787672472,0.011471,69076.0,69075.0,1.0321813]
[1717787673113,0.011471,69076.0,69075.0,0.8018813]
[1717787673337,0.011471,69076.0,69075.0,0.88436959]
[1717787673338,0.010471,69076.0,69075.0,0.88436959]
[1717787673542,0.010471,69076.0,69075.0,0.89236959]
[1717787673747,0.011471,69076.0,69075.0,0.89236959]
[1717787673944,0.009471,69076.0,69075.0,0.88436959]
[1717787674155,0.010471,69076.0,69075.0,0.88436959]
[1717787674374,0.011471,69076.0,69075.0,0.89236959]
[1717787674613,0.011471,69076.0,69075.0,0.88436959]
[1717787674820,0.011471,69076.0,69075.0,0.6531813]
[1717787675022,0.012471,69076.0,69075.0,0.6531813]
[1717787675238,0.010471,69076.0,69075.0,0.6451813]
[1717787675455,0.009471,69076.0,69075.0,0.6451813]
[1717787675687,0.009471,69076.0,69075.0,0.75229959]
[1717787675905,0.010471,69076.0,69075.0,0.75229959]
[1717787676379,0.009471,69076.0,69075.0,0.41026237]
[1717787676816,0.010471,69076.0,69075.0,0.41826237]
[1717787677035,0.011471,69076.0,69075.0,0.31826237]
[1717787677243,0.011471,69076.0,69075.0,0.108]
[1717787677442,0.009471,69076.0,69075.0,0.36326398]
[1717787677667,0.010471,69076.0,69075.0,0.48126398]
[1717787678085,0.009471,69076.0,69075.0,0.47326398]
[1717787678355,0.023471,69076.0,69075.0,0.61868291]
[1717787678588,0.023471,69076.0,69075.0,0.6795512]
[1717787678589,0.009471,69076.0,69075.0,0.6795512]
[1717787678794,0.009471,69076.0,69075.0,0.7590512]
[1717787678995,0.023471,69076.0,69075.0,0.7600512]
[1717787679211,0.023471,69076.0,69075.0,0.7590512]
[1717787679419,0.023471,69076.0,69075.0,0.69718291]
[1717787680255,0.023471,69076.0,69075.0,0.68718291]
[1717787680461,0.028471,69076.0,69075.0,0.46326398]
[1717787680680,0.028471,69076.0,69075.0,0.46726398]
[1717787680888,0.014471,69076.0,69075.0,0.46326398]
[1717787681937,0.016471,69076.0,69075.0,0.46326398]
[1717787682168,0.011471,69076.0,69075.0,0.46326398]
[1717787682381,0.013471,69076.0,69075.0,0.46326398]
[1717787682580,0.013471,69076.0,69075.0,0.47326398]
[1717787682787,0.013471,69076.0,69075.0,0.46326398]
[1717787683017,0.018471,69076.0,69075.0,0.46326398]
[1717787683436,0.018471,69076.0,69075.0,0.46306398]
[1717787683909,0.014471,69076.0,69075.0,0.46306398]
[1717787684118,0.016471,69076.0,69075.0,0.15280161]
[1717787684558,0.014471,69076.0,69075.0,0.15280161]
[1717787684972,0.011471,69076.0,69075.0,0.14550335]
[1717787685394,0.016471,69076.0,69075.0,0.14550335]
[1717787685596,0.016471,69076.0,69075.0,0.35576572]
[1717787685826,0.009471,69076.0,69075.0,0.35576572]
[1717787686041,0.009471,69076.0,69075.0,0.47317244]
[1717787686265,0.016471,69076.0,69075.0,0.47317244]
[1717787686464,0.016471,69076.0,69075.0,0.45576572]
[1717787686726,0.016471,69076.0,69075.0,0.46576572]
[1717787686947,0.009471,69076.0,69075.0,0.45576572]
[1717787687176,0.009471,69076.0,69075.0,0.46576572]
[1717787687443,0.011471,69076.0,69075.0,0.61018465]
[1717787687652,0.009471,69076.0,69075.0,0.70119312]
[1717787687858,0.012471,69076.0,69075.0,0.61018465]
[1717787688269,0.014471,69076.0,69075.0,0.61018465]
[1717787689070,0.022471,69076.0,69075.0,0.61018465]
[1717787691736,0.009471,69086.0,69085.0,0.41006237]
[1717787691966,0.009471,69086.0,69085.0,1.0179813]
[1717787692403,0.009471,69086.0,69085.0,1.09312504]
[1717787692631,0.02697138,69105.0,69095.0,0.46576572]
[1717787692632,0.009471,69105.0,69095.0,0.46576572]
[1717787692850,0.009471,69105.0,69104.0,0.61846572]
[1717787693061,0.009471,69105.0,69104.0,0.98318465]
[1717787693507,0.009471,69105.0,69104.0,1.26368465]
[1717787693728,0.009471,69105.0,69104.0,1.06368465]
[1717787693985,0.009471,69105.0,69104.0,1.40452471]
[1717787694218,0.009471,69113.0,69106.0,0.57276237]
[1717787694392,0.009471,69113.0,69106.0,0.7171813]
[1717787695390,0.009471,69113.0,69106.0,0.9171813]
[1717787695600,0.009471,69113.0,69106.0,0.9281813]
[1717787695601,0.01046001,69107.0,69106.0,0.9281813]
[1717787695814,0.009471,69113.0,69112.0,0.61846572]
[1717787696012,0.009471,69113.0,69112.0,1.25541289]
[1717787696245,0.009471,69113.0,69112.0,1.33591289]
[1717787696435,0.009471,69113.0,69112.0,1.47950418]
[1717787696969,0.009471,69113.0,69112.0,1.57950418]
[1717787697773,0.009471,69113.0,69112.0,1.37950418]
[1717787697976,0.011471,69113.0,69112.0,1.40450418]
[1717787698177,0.010471,69113.0,69112.0,1.39350418]
[1717787698625,0.010471,69113.0,69112.0,1.39050418]
[1717787698834,0.011471,69113.0,69112.0,1.39350418]
[1717787699662,0.011471,69113.0,69112.0,0.70406572]
[1717787699903,0.011471,69113.0,69112.0,0.48376572]
[1717787700115,0.011471,69113.0,69112.0,0.49376572]
[1717787700351,0.011471,69113.0,69112.0,0.63818465]
[1717787700585,0.2,69150.0,69112.0,0.63818465]
[1717787700586,0.00946001,69177.0,69152.0,0.2998]
[1717787700819,0.43336945,69162.0,69161.0,0.1998]
[1717787701049,0.43336945,69162.0,69152.0,0.72787037]
[1717787701050,0.00946001,69177.0,69176.0,0.45576572]
[1717787701525,0.24136001,69177.0,69176.0,0.14550335]
[1717787701750,0.24136001,69177.0,69176.0,0.04570335]
[1717787701992,0.24136001,69177.0,69176.0,0.0998]
[1717787702446,0.24136001,69177.0,69173.0,0.0998]
[1717787702696,0.24136001,69177.0,69176.0,0.36976572]
[1717787703358,0.24136001,69177.0,69176.0,0.16950335]
[1717787703779,0.24136001,69177.0,69176.0,0.15950335]
[1717787703993,0.24336001,69177.0,69176.0,0.14650335]
[1717787704217,0.24336001,69177.0,69176.0,0.14750335]
[1717787704438,0.36569601,69177.0,69176.0,0.001]
[1717787704650,0.36569601,69177.0,69165.0,0.0998]
[1717787704651,0.1508,69175.0,69165.0,0.0998]
[1717787704859,0.1508,69175.0,69158.0,0.1]
[1717787704860,0.29521893,69175.0,69163.0,0.0998]
[1717787705070,0.29521893,69175.0,69158.0,0.1]
[1717787705071,0.1,69174.0,69164.0,0.0998]
[1717787705275,0.776972,69174.0,69165.0,0.0998]
[1717787705498,0.166,69173.0,69165.0,0.0998]
[1717787705713,0.1,69172.0,69166.0,0.07577276]
[1717787705931,0.1,69172.0,69166.0,0.07222824]
[1717787706953,0.1,69172.0,69157.0,0.0998]
[1717787707073,0.1633,69169.0,69157.0,0.0998]
[1717787707306,0.1633,69169.0,69164.0,0.001]
[1717787707307,0.1633,69167.0,69164.0,0.001]
[1717787707521,0.30771893,69167.0,69166.0,0.001]
[1717787707951,0.30771893,69167.0,69157.0,0.0998]
[1717787707952,0.21169,69166.0,69157.0,0.0998]
[1717787708161,0.1737058,69169.0,69166.0,0.001]
[1717787708369,0.466089,69165.0,69157.0,0.1008]
[1717787708613,0.1639,69163.0,69157.0,0.001]
[1717787708837,0.1639,69163.0,69157.0,0.0998]
[1717787709016,0.1,69162.0,69159.0,0.07222824]
[1717787709863,0.1,69162.0,69160.0,0.08943106]
[1717787710068,0.1639,69163.0,69161.0,0.15596572]
[1717787710273,0.013,69167.0,69166.0,0.1998]
[1717787710478,0.013,69167.0,69166.0,0.0998]
[1717787710893,0.014,69166.0,69161.0,0.04570335]
[1717787711098,0.1613,69165.0,69159.0,0.0998]
[1717787711304,0.1613,69165.0,69160.0,0.41829933]
[1717787711713,0.1613,69165.0,69160.0,0.30036774]
[1717787711923,0.1522,69163.0,69160.0,0.13376774]
[1717787712128,0.1,69162.0,69161.0,0.001]
[1717787712338,0.1,69162.0,69160.0,0.13376774]
[1717787712339,0.1625,69161.0,69160.0,0.13376774]
[1717787712554,0.38471893,69161.0,69160.0,0.13476774]
[1717787712765,1.52624793,69161.0,69151.0,0.0998]
[1717787712970,0.1625,69159.0,69151.0,0.0998]
[1717787713178,0.1,69158.0,69151.0,0.0998]
[1717787713817,0.24441893,69158.0,69144.0,0.14550335]
[1717787714036,0.14441893,69157.0,69151.0,0.0998]
[1717787714248,0.1502,69156.0,69151.0,0.0998]
[1717787714482,0.1502,69154.0,69146.0,0.0998]
[1717787714696,0.1502,69152.0,69146.0,0.0998]
[1717787714932,0.2435,69150.0,69146.0,0.0998]
[1717787715137,0.2435,69150.0,69143.0,0.0998]
[1717787715138,0.1,69149.0,69143.0,0.0998]
[1717787715340,1.010597,69149.0,69143.0,0.0998]
[1717787715549,0.1,69149.0,69144.0,0.07222824]
[1717787715976,0.1,69149.0,69146.0,0.001]
[1717787716388,0.114,69149.0,69146.0,0.001]
[1717787717472,0.114,69149.0,69148.0,0.04570335]
[1717787717676,0.114,69149.0,69148.0,0.25596572]
[1717787717881,0.114,69149.0,69148.0,0.05596572]
[1717787718101,0.128,69149.0,69148.0,0.25596572]
[1717787718309,0.1,69149.0,69148.0,0.25596572]
[1717787718520,0.114,69149.0,69148.0,0.04570335]
[1717787718737,0.128,69149.0,69143.0,0.0998]
[1717787718956,0.382551,69149.0,69143.0,0.0998]
[1717787719121,0.114,69149.0,69143.0,0.0998]
[1717787719454,0.460104,69148.0,69143.0,0.0998]
[1717787719628,0.1,69147.0,69143.0,0.0998]
[1717787720107,0.1,69147.0,69144.0,0.07222824]
[1717787720655,0.014,69149.0,69144.0,0.07222824]
[1717787720656,0.1,69149.0,69144.0,0.07222824]
[1717787720857,0.114,69149.0,69144.0,0.07222824]
[1717787721073,0.114,69149.0,69147.0,0.04570335]
[1717787721270,0.1,69149.0,69147.0,0.04570335]
[1717787721676,0.114,69149.0,69147.0,0.04570335]
[1717787721924,0.114,69149.0,69148.0,0.21026237]
[1717787721925,0.13176175,69149.0,69148.0,0.21026237]
[1717787722136,0.11776175,69149.0,69147.0,0.04570335]
[1717787722332,0.11776175,69149.0,69148.0,0.21251324]
[1717787722537,0.03176175,69149.0,69148.0,0.21026237]
[1717787722760,0.114,69149.0,69148.0,0.21026237]
[1717787722962,0.114,69149.0,69147.0,0.04570335]
[1717787723206,0.1,69148.0,69147.0,0.04570335]
[1717787723343,0.3551,69148.0,69147.0,0.04570335]
[1717787723742,0.3437,69148.0,69147.0,0.04570335]
[1717787723946,0.3437,69148.0,69147.0,0.25596572]
[1717787723947,0.1,69148.0,69147.0,0.25596572]
[1717787724195,0.1,69152.0,69150.0,0.01026237]
[1717787724370,0.1,69152.0,69151.0,0.21026237]
[1717787724746,0.158,69153.0,69151.0,0.21026237]
[1717787724747,0.158,69153.0,69151.0,0.0998]
[1717787725666,0.014,69152.0,69151.0,0.0998]
[1717787725861,0.158,69153.0,69151.0,0.0998]
[1717787726011,0.172,69153.0,69151.0,0.0998]
[1717787726209,0.1,69152.0,69151.0,0.0998]
[1717787726440,0.1,69152.0,69148.0,0.0998]
[1717787726642,0.1,69152.0,69147.0,0.04570335]
[1717787727640,0.14441893,69151.0,69147.0,0.04570335]
[1717787727858,0.1,69150.0,69147.0,0.04570335]
[1717787728062,0.14441893,69149.0,69147.0,0.04570335]
[1717787728269,0.1,69148.0,69147.0,0.04570335]
[1717787728469,0.1628,69147.0,69140.0,0.04570335]
[1717787728666,0.24441893,69146.0,69140.0,0.04570335]
[1717787729040,0.24441893,69146.0,69130.0,0.04570335]
[1717787729041,0.0789,69143.0,69130.0,0.04570335]
[1717787729261,0.6203,69145.0,69123.0,0.43336945]
[1717787729262,0.1602,69136.0,69123.0,0.43336945]
[1717787729532,0.1602,69136.0,69129.0,0.01026237]
[1717787729533,5.903e-05,69130.0,69129.0,0.01026237]
[1717787729723,5.903e-05,69130.0,69129.0,0.38229061]
[1717787729925,5.903e-05,69130.0,69129.0,0.64251742]
[1717787730132,5.903e-05,69130.0,69129.0,0.63251742]
[1717787730644,5.903e-05,69130.0,69129.0,0.64251742]
[1717787730851,5.903e-05,69130.0,69129.0,0.63251618]
[1717787731256,5.903e-05,69130.0,69129.0,0.64251618]
[1717787732026,0.00205903,69130.0,69129.0,0.64251618]
[1717787732247,0.00105903,69130.0,69129.0,0.64251618]
[1717787732445,0.00205903,69130.0,69129.0,0.64251618]
[1717787732852,0.00105903,69130.0,69129.0,0.64251618]
[1717787733056,5.903e-05,69130.0,69129.0,0.63251618]
[1717787733256,0.00105903,69130.0,69129.0,0.64251618]
[1717787733486,0.00105903,69130.0,69129.0,0.8815504]
[1717787734063,0.00105903,69130.0,69129.0,0.77693511]
[1717787734263,0.00105903,69130.0,69129.0,0.56028794]
[1717787734486,0.00205903,69130.0,69129.0,0.56028794]
[1717787734688,0.00105903,69130.0,69129.0,0.56028794]
[1717787734893,0.00105903,69130.0,69129.0,0.58192135]
[1717787735304,0.00205903,69130.0,69129.0,0.58192135]
[1717787735513,0.00305903,69130.0,69129.0,0.56028794]
[1717787735761,0.00205903,69130.0,69129.0,0.46028794]
[1717787735963,0.00205903,69130.0,69129.0,0.25002557]
[1717787735964,5.903e-05,69130.0,69129.0,0.25002557]
[1717787736219,5.903e-05,69130.0,69129.0,0.46028794]
[1717787736467,0.00105903,69130.0,69129.0,0.25002557]
[1717787736664,0.00105903,69130.0,69129.0,0.15022557]
[1717787736665,0.24732493,69130.0,69129.0,0.15022557]
[1717787736867,0.24732493,69130.0,69121.0,0.04570335]
[1717787736868,0.52560703,69130.0,69121.0,0.04570335]
[1717787737125,0.24441893,69129.0,69121.0,0.04570335]
[1717787737333,0.1636,69128.0,69110.0,0.0998]
[1717787737542,1.84897593,69129.0,69114.0,0.0998]
[1717787737543,0.1636,69123.0,69114.0,0.0998]
[1717787737783,0.1636,69123.0,69116.0,0.0998]
[1717787737784,0.14441893,69122.0,69116.0,0.0998]
[1717787737981,0.1,69121.0,69116.0,0.0998]
[1717787738185,0.14441893,69120.0,69116.0,0.0998]
[1717787738411,0.1,69119.0,69116.0,0.0998]
[1717787738622,0.24441893,69119.0,69116.0,0.0998]
[1717787738832,0.24441893,69119.0,69118.0,0.21026237]
[1717787738833,0.1,69119.0,69118.0,0.21026237]
[1717787739273,0.1,69119.0,69117.0,0.08116025]
[1717787739481,0.014,69122.0,69116.0,0.0998]
[1717787739482,0.1,69122.0,69116.0,0.0998]
[1717787740084,0.1,69122.0,69116.0,0.30873201]
[1717787740220,0.1,69122.0,69121.0,0.04570335]
[1717787741261,0.1,69122.0,69116.0,0.0998]
[1717787741262,0.01106799,69120.0,69116.0,0.0998]
[1717787741517,0.15441893,69119.0,69116.0,0.0998]
[1717787741725,0.1,69118.0,69116.0,0.0998]
[1717787742912,0.1,69118.0,69116.0,0.10873201]
[1717787742971,0.1,69118.0,69116.0,0.0998]
[1717787742985,0.114,69118.0,69117.0,0.28116025]
[1717787743115,0.114,69118.0,69117.0,0.07222824]
[1717787743526,0.114,69118.0,69114.0,0.35443536]
[1717787743747,0.1,69117.0,69116.0,0.0998]
[1717787744189,0.1,69117.0,69116.0,0.00893201]
[1717787744398,0.1,69117.0,69116.0,0.0998]
[1717787744809,0.1,69122.0,69121.0,0.000946]
[1717787745025,0.1,69122.0,69121.0,0.04664935]
[1717787747379,0.11106799,69122.0,69121.0,0.000946]
[1717787747589,0.572092,69122.0,69121.0,0.000946]
[1717787747808,0.347257,69122.0,69121.0,0.000946]
[1717787748152,0.128,69122.0,69121.0,0.000946]
[1717787748585,0.383307,69122.0,69121.0,0.000946]
[1717787749544,0.27241893,69122.0,69121.0,0.000946]
[1717787749768,0.28771899,69122.0,69121.0,0.000946]
[1717787749996,1.23601498,69122.0,69121.0,0.000946]
[1717787750212,1.23601498,69122.0,69110.0,0.0998]
[1717787750213,0.01,69116.0,69110.0,0.0998]
[1717787750402,0.1576,69110.0,69105.0,0.04570335]
[1717787750605,0.1676,69110.0,69105.0,0.04570335]
[1717787750802,0.1,69109.0,69105.0,0.04570335]
[1717787751193,0.1,69109.0,69105.0,0.05463536]
[1717787751576,0.1,69109.0,69105.0,0.04570335]
[1717787752088,0.128,69109.0,69105.0,0.05463536]
[1717787752876,0.128,69109.0,69105.0,0.04570335]
[1717787753918,0.138,69109.0,69105.0,0.04570335]
[1717787754067,0.128,69109.0,69105.0,0.04570335]
[1717787754274,0.128,69109.0,69106.0,0.20893201]
[1717787754516,0.128,69109.0,69105.0,0.04570335]
[1717787755265,0.1,69109.0,69105.0,0.04570335]
[1717787755621,0.128,69109.0,69105.0,0.04570335]
[1717787755818,0.114,69109.0,69105.0,0.04570335]
[1717787756058,0.1,69109.0,69105.0,0.04570335]
[1717787756233,0.114,69109.0,69105.0,0.04570335]
[1717787756433,0.128,69109.0,69105.0,0.04570335]
[1717787756668,0.128,69109.0,69106.0,0.20893201]
[1717787756841,0.128,69109.0,69105.0,0.25463536]
[1717787757057,0.128,69109.0,69105.0,0.05463536]
[1717787757265,0.128,69109.0,69106.0,0.20893201]
[1717787757491,0.128,69109.0,69105.0,0.05463536]
[1717787757694,0.128,69109.0,69105.0,0.04570335]
[1717787758326,0.114,69109.0,69105.0,0.04570335]
[1717787758525,0.114,69109.0,69105.0,0.25463536]
[1717787758526,0.128,69109.0,69105.0,0.25463536]
[1717787758736,0.128,69109.0,69105.0,0.04570335]
[1717787759141,0.114,69109.0,69105.0,0.04570335]
[1717787759363,0.128,69109.0,69105.0,0.04570335]
[1717787759540,0.01106799,69108.0,69105.0,0.04570335]
[1717787759965,0.0751,69107.0,69105.0,0.04570335]
[1717787760169,0.0851,69107.0,69105.0,0.04570335]
[1717787760374,0.0751,69107.0,69105.0,0.04570335]
[1717787761546,0.1,69109.0,69105.0,0.04570335]
[1717787761547,0.1,69109.0,69108.0,0.20893201]